[Event "Titled Tuesday Blitz January 03 Early 2023"]
[White "Remizov, Yaroslav"]
[Black "Zainullina, Nataliya"]
[WhiteFideId "34134015"]
[BlackFideId "4145488"]
[WhiteElo "2421"]
[BlackElo "2099"]
[Result "0-1"]
[Round "04"]
[TimeControl "180+2"]
[Date "2023.01.03"]
[WhiteClock "0:00:02"]
[BlackClock "0:00:03"]

1. a3 {[%clk 0:03:00]}  g6 {[%clk 0:02:48]} 2. e3 {[%clk 0:03:00]}  Bg7 {[%clk 0:02:45]} 3. c4 {[%clk 0:03:00]}  Nf6 {[%clk 0:02:44]} 4. Nc3 {[%clk 0:03:00]}  O-O {[%clk 0:02:43]} 5. Qc2 {[%clk 0:03:00]}  d5 {[%clk 0:02:43]} 6. cxd5 {[%clk 0:03:00]}  Nxd5 {[%clk 0:02:42]} 7. Nf3 {[%clk 0:02:56]}  Nxc3 {[%clk 0:02:37]} 8. bxc3 {[%clk 0:02:56]}  c5 {[%clk 0:02:38]} 9. Be2 {[%clk 0:02:52]}  b6 {[%clk 0:02:36]} 10. Qe4 {[%clk 0:02:33]}  Qc7 {[%clk 0:02:35]} 11. Qxa8 {[%clk 0:02:32]}  Nc6 {[%clk 0:02:35]} 12. O-O {[%clk 0:02:26]}  Bb7 {[%clk 0:02:35]} 13. Qxf8+ {[%clk 0:02:26]}  Bxf8 {[%clk 0:02:33]} 14. d4 {[%clk 0:02:25]}  Na5 {[%clk 0:02:26]} 15. Rb1 {[%clk 0:02:21]}  c4 {[%clk 0:02:26]} 16. Nd2 {[%clk 0:02:06]}  e6 {[%clk 0:02:15]} 17. e4 {[%clk 0:02:05]}  Bh6 {[%clk 0:02:14]} 18. e5 {[%clk 0:01:55]}  Bxd2 {[%clk 0:02:03]} 19. Bxd2 {[%clk 0:01:56]}  Nb3 {[%clk 0:02:02]} 20. Be3 {[%clk 0:01:48]}  Bd5 {[%clk 0:02:01]} 21. Rb2 {[%clk 0:01:39]}  a5 {[%clk 0:02:00]} 22. h4 {[%clk 0:01:29]}  a4 {[%clk 0:01:58]} 23. Kh2 {[%clk 0:01:27]}  Qe7 {[%clk 0:01:57]} 24. h5 {[%clk 0:01:18]}  Qxa3 {[%clk 0:01:50]} 25. Rbb1 {[%clk 0:01:12]}  Qe7 {[%clk 0:01:18]} 26. hxg6 {[%clk 0:01:12]}  fxg6 {[%clk 0:01:12]} 27. Rb2 {[%clk 0:01:09]}  b5 {[%clk 0:01:08]} 28. Kg3 {[%clk 0:00:51]}  b4 {[%clk 0:00:49]} 29. cxb4 {[%clk 0:00:51]}  Qxb4 {[%clk 0:00:49]} 30. Bg4 {[%clk 0:00:48]}  c3 {[%clk 0:00:47]} 31. Rc2 {[%clk 0:00:35]}  Nxd4 {[%clk 0:00:46]} 32. Bxd4 {[%clk 0:00:25]}  Qxd4 {[%clk 0:00:46]} 33. Rfc1 {[%clk 0:00:25]}  Qxe5+ {[%clk 0:00:45]} 34. f4 {[%clk 0:00:22]}  Qe3+ {[%clk 0:00:44]} 35. Bf3 {[%clk 0:00:22]}  g5 {[%clk 0:00:18]} 36. fxg5 {[%clk 0:00:22]}  Qxg5+ {[%clk 0:00:17]} 37. Kf2 {[%clk 0:00:22]}  a3 {[%clk 0:00:15]} 38. Rxc3 {[%clk 0:00:20]}  a2 {[%clk 0:00:15]} 39. Bxd5 {[%clk 0:00:19]}  Qxd5 {[%clk 0:00:15]} 40. Rc8+ {[%clk 0:00:06]}  Kg7 {[%clk 0:00:15]} 41. R1c7+ {[%clk 0:00:06]}  Kh6 {[%clk 0:00:14]} 42. Rc1 {[%clk 0:00:04]}  Qd4+ {[%clk 0:00:13]} 43. Kg3 {[%clk 0:00:04]}  a1=Q {[%clk 0:00:13]} 44. Rxa1 {[%clk 0:00:04]}  Qxa1 {[%clk 0:00:12]} 45. Re8 {[%clk 0:00:05]}  Qe5+ {[%clk 0:00:11]} 46. Kf2 {[%clk 0:00:04]}  Qf5+ {[%clk 0:00:10]} 47. Ke3 {[%clk 0:00:04]}  Qc5+ {[%clk 0:00:10]} 48. Kf4 {[%clk 0:00:04]}  Qf5+ {[%clk 0:00:09]} 49. Ke3 {[%clk 0:00:04]}  Qe5+ {[%clk 0:00:09]} 50. Kf2 {[%clk 0:00:04]}  Kg6 {[%clk 0:00:07]} 51. g3 {[%clk 0:00:04]}  Qc5+ {[%clk 0:00:06]} 52. Kg2 {[%clk 0:00:03]}  Kf7 {[%clk 0:00:07]} 53. Rb8 {[%clk 0:00:03]}  Qc6+ {[%clk 0:00:07]} 54. Kh2 {[%clk 0:00:03]}  Qc7 {[%clk 0:00:08]} 55. Rh8 {[%clk 0:00:02]}  Qc2+ {[%clk 0:00:07]} 56. Kh3 {[%clk 0:00:02]}  Qg6 {[%clk 0:00:08]} 57. Rc8 {[%clk 0:00:01]}  Qf5+ {[%clk 0:00:07]} 58. Kg2 {[%clk 0:00:01]}  e5 {[%clk 0:00:07]} 59. Rc7+ {[%clk 0:00:01]}  Kg6 {[%clk 0:00:08]} 60. Rc3 {[%clk 0:00:02]}  Qe4+ {[%clk 0:00:06]} 61. Kf2 {[%clk 0:00:02]}  Qd4+ {[%clk 0:00:07]} 62. Re3 {[%clk 0:00:03]}  Qxe3+ {[%clk 0:00:06]} 63. Kxe3 {[%clk 0:00:03]}  Kf5 {[%clk 0:00:06]} 64. Kf3 {[%clk 0:00:02]}  e4+ {[%clk 0:00:07]} 65. Ke3 {[%clk 0:00:03]}  Ke5 {[%clk 0:00:07]} 66. g4 {[%clk 0:00:02]}  Kd5 {[%clk 0:00:05]} 67. Kf4 {[%clk 0:00:01]}  Kd4 {[%clk 0:00:04]} 68. g5 {[%clk 0:00:02]}  e3 {[%clk 0:00:04]} 69. Kf3 {[%clk 0:00:02]}  Kd3 {[%clk 0:00:03]} 70. Kg4 {[%clk 0:00:01]}  e2 {[%clk 0:00:03]} 71. g6 {[%clk 0:00:02]}  hxg6 {[%clk 0:00:03]} 72. Kf4 {[%clk 0:00:02]}  e1=Q {[%clk 0:00:03]} 0-1


[Site "https://www.chess.com"]

[Event "Titled Tuesday Blitz January 03 Early 2023"]
[White "Najdin, Danil"]
[Black "Demchenko, Anton"]
[WhiteFideId "4172426"]
[BlackFideId "4160258"]
[WhiteElo "2235"]
[BlackElo "2623"]
[Result "1-0"]
[Round "04"]
[TimeControl "180+2"]
[Date "2023.01.03"]
[WhiteClock "0:00:08"]
[BlackClock "0:00:03"]

1. e4 {[%clk 0:03:00]}  e5 {[%clk 0:02:57]} 2. Nf3 {[%clk 0:03:00]}  Nc6 {[%clk 0:02:58]} 3. Nc3 {[%clk 0:03:01]}  Nf6 {[%clk 0:02:58]} 4. Bb5 {[%clk 0:03:01]}  Bd6 {[%clk 0:02:55]} 5. O-O {[%clk 0:02:59]}  O-O {[%clk 0:02:55]} 6. d3 {[%clk 0:02:56]}  Re8 {[%clk 0:02:54]} 7. a3 {[%clk 0:02:55]}  h6 {[%clk 0:02:53]} 8. h3 {[%clk 0:02:49]}  Bf8 {[%clk 0:02:53]} 9. Bc4 {[%clk 0:02:48]}  d6 {[%clk 0:02:52]} 10. Ne1 {[%clk 0:02:34]}  Be6 {[%clk 0:02:49]} 11. Bxe6 {[%clk 0:02:33]}  fxe6 {[%clk 0:02:48]} 12. f4 {[%clk 0:02:33]}  exf4 {[%clk 0:02:48]} 13. Bxf4 {[%clk 0:02:32]}  d5 {[%clk 0:02:47]} 14. e5 {[%clk 0:02:07]}  Nd7 {[%clk 0:02:34]} 15. Qh5 {[%clk 0:02:03]}  Qe7 {[%clk 0:02:24]} 16. Nf3 {[%clk 0:01:58]}  Qf7 {[%clk 0:02:21]} 17. Qg4 {[%clk 0:01:53]}  Ne7 {[%clk 0:01:44]} 18. Nh4 {[%clk 0:01:45]}  Nf5 {[%clk 0:01:43]} 19. Bh2 {[%clk 0:01:20]}  h5 {[%clk 0:00:50]} 20. Qf4 {[%clk 0:01:20]}  g6 {[%clk 0:00:43]} 21. g4 {[%clk 0:01:12]}  Bh6 {[%clk 0:00:26]} 22. Qf3 {[%clk 0:00:47]}  Kh7 {[%clk 0:00:15]} 23. gxf5 {[%clk 0:00:46]}  gxf5 {[%clk 0:00:16]} 24. Kh1 {[%clk 0:00:44]}  Rg8 {[%clk 0:00:16]} 25. Rg1 {[%clk 0:00:40]}  Bg5 {[%clk 0:00:16]} 26. Ng2 {[%clk 0:00:39]}  Rg7 {[%clk 0:00:12]} 27. Ne2 {[%clk 0:00:29]}  Rag8 {[%clk 0:00:11]} 28. d4 {[%clk 0:00:29]}  c5 {[%clk 0:00:11]} 29. c3 {[%clk 0:00:29]}  cxd4 {[%clk 0:00:08]} 30. cxd4 {[%clk 0:00:30]}  Nb6 {[%clk 0:00:02]} 31. b3 {[%clk 0:00:28]}  Nc8 {[%clk 0:00:02]} 32. Nef4 {[%clk 0:00:26]}  Kh6 {[%clk 0:00:02]} 33. Rac1 {[%clk 0:00:20]}  a6 {[%clk 0:00:02]} 34. Bg3 {[%clk 0:00:16]}  Na7 {[%clk 0:00:02]} 35. Bh4 {[%clk 0:00:15]}  Nc6 {[%clk 0:00:02]} 36. Bxg5+ {[%clk 0:00:10]}  Rxg5 {[%clk 0:00:03]} 37. Ne2 {[%clk 0:00:11]}  Kh7 {[%clk 0:00:03]} 38. Ngf4 {[%clk 0:00:11]}  Qe7 {[%clk 0:00:02]} 39. Nxh5 {[%clk 0:00:09]}  Rxg1+ {[%clk 0:00:02]} 40. Rxg1 {[%clk 0:00:09]}  Rxg1+ {[%clk 0:00:02]} 41. Kxg1 {[%clk 0:00:09]}  Qg5+ {[%clk 0:00:02]} 42. Kh2 {[%clk 0:00:08]}  Kg6 {[%clk 0:00:02]} 43. Nhf4+ {[%clk 0:00:08]}  Kh6 {[%clk 0:00:03]} 44. Qg3 {[%clk 0:00:08]} 1-0


[Site "https://www.chess.com"]

[Event "Titled Tuesday Blitz January 03 Early 2023"]
[White "Valle Maytin, Luis Enrique"]
[Black "Santos Ruiz, Miguel"]
[WhiteFideId "3503666"]
[BlackFideId "22291482"]
[WhiteElo "2241"]
[BlackElo "2590"]
[Result "1-0"]
[Round "04"]
[TimeControl "180+2"]
[Date "2023.01.03"]
[WhiteClock "0:00:18"]
[BlackClock "0:00:10"]

1. e4 {[%clk 0:03:00]}  e6 {[%clk 0:02:57]} 2. d4 {[%clk 0:02:57]}  d5 {[%clk 0:02:58]} 3. exd5 {[%clk 0:02:57]}  exd5 {[%clk 0:02:58]} 4. Nf3 {[%clk 0:02:58]}  c6 {[%clk 0:02:55]} 5. Bd3 {[%clk 0:02:57]}  Bd6 {[%clk 0:02:55]} 6. O-O {[%clk 0:02:52]}  Ne7 {[%clk 0:02:55]} 7. Bg5 {[%clk 0:02:47]}  f6 {[%clk 0:02:45]} 8. Bh4 {[%clk 0:02:47]}  Nf5 {[%clk 0:02:42]} 9. Bg3 {[%clk 0:02:45]}  Nxg3 {[%clk 0:02:41]} 10. hxg3 {[%clk 0:02:46]}  O-O {[%clk 0:02:23]} 11. c3 {[%clk 0:02:42]}  Nd7 {[%clk 0:02:17]} 12. Nbd2 {[%clk 0:02:41]}  f5 {[%clk 0:01:59]} 13. Qc2 {[%clk 0:02:34]}  g6 {[%clk 0:01:54]} 14. c4 {[%clk 0:02:23]}  Nf6 {[%clk 0:01:52]} 15. Ne5 {[%clk 0:02:19]}  Kg7 {[%clk 0:01:48]} 16. Rfe1 {[%clk 0:02:11]}  Ne4 {[%clk 0:01:42]} 17. Ndf3 {[%clk 0:01:56]}  Be6 {[%clk 0:01:36]} 18. Qb3 {[%clk 0:01:51]}  Qb6 {[%clk 0:01:23]} 19. c5 {[%clk 0:01:39]}  Qxb3 {[%clk 0:01:22]} 20. axb3 {[%clk 0:01:40]}  Bc7 {[%clk 0:01:21]} 21. b4 {[%clk 0:01:36]}  a6 {[%clk 0:01:20]} 22. Rad1 {[%clk 0:01:24]}  Rae8 {[%clk 0:01:20]} 23. Bb1 {[%clk 0:01:22]}  Bc8 {[%clk 0:01:18]} 24. Nd3 {[%clk 0:01:06]}  g5 {[%clk 0:01:15]} 25. Nfe5 {[%clk 0:01:06]}  h5 {[%clk 0:01:09]} 26. Kh2 {[%clk 0:00:52]}  h4 {[%clk 0:01:07]} 27. gxh4 {[%clk 0:00:51]}  Rh8 {[%clk 0:01:07]} 28. f3 {[%clk 0:00:47]}  Rxh4+ {[%clk 0:01:03]} 29. Kg1 {[%clk 0:00:47]}  Ng3 {[%clk 0:00:57]} 30. Kf2 {[%clk 0:00:47]}  Rxd4 {[%clk 0:00:33]} 31. Nxc6 {[%clk 0:00:20]}  Rxe1 {[%clk 0:00:13]} 32. Rxe1 {[%clk 0:00:20]}  Ne4+ {[%clk 0:00:11]} 33. fxe4 {[%clk 0:00:20]}  bxc6 {[%clk 0:00:12]} 34. exd5 {[%clk 0:00:19]}  Kf6 {[%clk 0:00:09]} 35. d6 {[%clk 0:00:18]}  Bd8 {[%clk 0:00:10]} 36. Re8 {[%clk 0:00:18]} 1-0


[Site "https://www.chess.com"]

[Event "Titled Tuesday Blitz January 03 Early 2023"]
[White "HSH1987"]
[Black "Andreev, Konstantin"]
[BlackFideId "24239305"]
[WhiteElo "2675"]
[BlackElo "2195"]
[Result "1-0"]
[Round "04"]
[TimeControl "180+2"]
[Date "2023.01.03"]
[WhiteClock "0:00:32"]
[BlackClock "0:00:02"]

1. Nf3 {[%clk 0:03:00]}  Nf6 {[%clk 0:02:59]} 2. g3 {[%clk 0:03:01]}  d5 {[%clk 0:02:56]} 3. Bg2 {[%clk 0:03:02]}  g6 {[%clk 0:02:55]} 4. O-O {[%clk 0:03:02]}  Bg7 {[%clk 0:02:56]} 5. d4 {[%clk 0:03:01]}  O-O {[%clk 0:02:56]} 6. c4 {[%clk 0:03:01]}  c6 {[%clk 0:02:55]} 7. cxd5 {[%clk 0:03:01]}  cxd5 {[%clk 0:02:56]} 8. Nc3 {[%clk 0:03:02]}  Nc6 {[%clk 0:02:56]} 9. Ne5 {[%clk 0:02:59]}  Be6 {[%clk 0:02:54]} 10. Nxc6 {[%clk 0:02:59]}  bxc6 {[%clk 0:02:55]} 11. b3 {[%clk 0:02:58]}  Rc8 {[%clk 0:02:53]} 12. Ba3 {[%clk 0:02:57]}  Nd7 {[%clk 0:02:50]} 13. Rc1 {[%clk 0:02:55]}  Re8 {[%clk 0:02:49]} 14. Na4 {[%clk 0:02:53]}  Qa5 {[%clk 0:02:46]} 15. e3 {[%clk 0:02:48]}  Bf5 {[%clk 0:02:45]} 16. Qe1 {[%clk 0:02:43]}  Qa6 {[%clk 0:02:41]} 17. Qd2 {[%clk 0:02:39]}  Nb6 {[%clk 0:02:35]} 18. Rfd1 {[%clk 0:02:22]}  Nxa4 {[%clk 0:02:28]} 19. Bf1 {[%clk 0:02:21]}  Qb7 {[%clk 0:02:15]} 20. bxa4 {[%clk 0:02:20]}  e5 {[%clk 0:02:14]} 21. dxe5 {[%clk 0:02:13]}  Bxe5 {[%clk 0:01:33]} 22. Bc5 {[%clk 0:02:11]}  Qd7 {[%clk 0:01:29]} 23. a5 {[%clk 0:02:05]}  h5 {[%clk 0:01:26]} 24. h4 {[%clk 0:01:59]}  f6 {[%clk 0:01:10]} 25. a6 {[%clk 0:01:58]}  g5 {[%clk 0:01:10]} 26. hxg5 {[%clk 0:01:56]}  fxg5 {[%clk 0:01:09]} 27. Bd4 {[%clk 0:01:56]}  h4 {[%clk 0:01:08]} 28. e4 {[%clk 0:01:46]}  Bxd4 {[%clk 0:00:51]} 29. Qxg5+ {[%clk 0:01:42]}  Qg7 {[%clk 0:00:45]} 30. Qxg7+ {[%clk 0:01:37]}  Bxg7 {[%clk 0:00:46]} 31. exf5 {[%clk 0:01:38]}  hxg3 {[%clk 0:00:47]} 32. fxg3 {[%clk 0:01:36]}  Re3 {[%clk 0:00:45]} 33. Kf2 {[%clk 0:01:24]}  d4 {[%clk 0:00:44]} 34. Bc4+ {[%clk 0:01:18]}  Kf8 {[%clk 0:00:42]} 35. Rb1 {[%clk 0:01:14]}  Rce8 {[%clk 0:00:36]} 36. Rb7 {[%clk 0:01:12]}  Rc3 {[%clk 0:00:31]} 37. Be6 {[%clk 0:01:04]}  Re7 {[%clk 0:00:24]} 38. g4 {[%clk 0:01:00]}  Bf6 {[%clk 0:00:11]} 39. Ke2 {[%clk 0:00:48]}  c5 {[%clk 0:00:09]} 40. g5 {[%clk 0:00:41]}  Bxg5 {[%clk 0:00:08]} 41. Rg1 {[%clk 0:00:41]}  Re3+ {[%clk 0:00:06]} 42. Kf1 {[%clk 0:00:38]}  R7xe6 {[%clk 0:00:02]} 43. fxe6 {[%clk 0:00:34]}  Bf6 {[%clk 0:00:02]} 44. Rf7+ {[%clk 0:00:32]}  Ke8 {[%clk 0:00:02]} 45. Rg8# {[%clk 0:00:32]} 1-0


[Site "https://www.chess.com"]

[Event "Titled Tuesday Blitz January 03 Early 2023"]
[White "Demin, Vladimir"]
[Black "Novikova, Galina"]
[WhiteFideId "4167457"]
[BlackFideId "4157095"]
[WhiteElo "2430"]
[BlackElo "2073"]
[Result "1-0"]
[Round "04"]
[TimeControl "180+2"]
[Date "2023.01.03"]
[WhiteClock "0:00:16"]
[BlackClock "0:00:09"]

1. d4 {[%clk 0:02:55]}  e6 {[%clk 0:03:00]} 2. e4 {[%clk 0:02:54]}  d5 {[%clk 0:03:01]} 3. Bd3 {[%clk 0:02:55]}  dxe4 {[%clk 0:02:57]} 4. Bxe4 {[%clk 0:02:56]}  Nf6 {[%clk 0:02:58]} 5. Bf3 {[%clk 0:02:56]}  Be7 {[%clk 0:02:59]} 6. Ne2 {[%clk 0:02:56]}  c5 {[%clk 0:02:57]} 7. Be3 {[%clk 0:02:46]}  Nc6 {[%clk 0:02:57]} 8. Nbc3 {[%clk 0:02:41]}  cxd4 {[%clk 0:02:53]} 9. Nxd4 {[%clk 0:02:40]}  Ne5 {[%clk 0:02:53]} 10. Qe2 {[%clk 0:02:38]}  O-O {[%clk 0:02:52]} 11. O-O-O {[%clk 0:02:37]}  Nxf3 {[%clk 0:02:52]} 12. Qxf3 {[%clk 0:02:35]}  Qa5 {[%clk 0:02:49]} 13. g4 {[%clk 0:02:34]}  e5 {[%clk 0:02:37]} 14. Nf5 {[%clk 0:02:33]}  Bxf5 {[%clk 0:02:37]} 15. Qxf5 {[%clk 0:02:20]}  Rac8 {[%clk 0:02:30]} 16. g5 {[%clk 0:02:12]}  Ba3 {[%clk 0:01:05]} 17. Nb1 {[%clk 0:01:21]}  Bxb2+ {[%clk 0:00:55]} 18. Kxb2 {[%clk 0:01:20]}  Qb4+ {[%clk 0:00:53]} 19. Kc1 {[%clk 0:01:20]}  Ne4 {[%clk 0:00:45]} 20. Qxe5 {[%clk 0:01:04]}  Qc4 {[%clk 0:00:38]} 21. Qb2 {[%clk 0:01:02]}  Rc6 {[%clk 0:00:29]} 22. Rd4 {[%clk 0:00:56]}  Qe6 {[%clk 0:00:30]} 23. Rhd1 {[%clk 0:00:53]}  Nd6 {[%clk 0:00:20]} 24. Qb3 {[%clk 0:00:42]}  Qg6 {[%clk 0:00:13]} 25. R1d3 {[%clk 0:00:26]}  Rb6 {[%clk 0:00:12]} 26. Qa3 {[%clk 0:00:18]}  Nf5 {[%clk 0:00:12]} 27. Rd8 {[%clk 0:00:16]}  Nxe3 {[%clk 0:00:09]} 28. Qxf8# {[%clk 0:00:16]} 1-0


[Site "https://www.chess.com"]

[Event "Titled Tuesday Blitz January 03 Early 2023"]
[White "Blanco Ronquillo, Humberto L."]
[Black "Degenbaev, Aziz"]
[WhiteFideId "3504239"]
[BlackFideId "13802640"]
[WhiteElo "2442"]
[BlackElo "2203"]
[Result "0-1"]
[Round "04"]
[TimeControl "180+2"]
[Date "2023.01.03"]
[WhiteClock "0:00:18"]
[BlackClock "0:00:08"]

1. e4 {[%clk 0:03:00]}  c5 {[%clk 0:02:57]} 2. Nf3 {[%clk 0:03:00]}  d6 {[%clk 0:02:57]} 3. Bb5+ {[%clk 0:03:00]}  Nd7 {[%clk 0:02:56]} 4. Ba4 {[%clk 0:03:00]}  Nf6 {[%clk 0:02:54]} 5. O-O {[%clk 0:03:01]}  g6 {[%clk 0:02:53]} 6. Re1 {[%clk 0:03:01]}  Bg7 {[%clk 0:02:52]} 7. c3 {[%clk 0:03:02]}  c4 {[%clk 0:02:47]} 8. b3 {[%clk 0:02:59]}  cxb3 {[%clk 0:02:44]} 9. axb3 {[%clk 0:02:54]}  O-O {[%clk 0:02:45]} 10. b4 {[%clk 0:02:54]}  Rb8 {[%clk 0:02:40]} 11. Bb3 {[%clk 0:02:51]}  a6 {[%clk 0:02:36]} 12. d4 {[%clk 0:02:41]}  Nb6 {[%clk 0:01:50]} 13. h3 {[%clk 0:02:31]}  e6 {[%clk 0:01:30]} 14. Bf4 {[%clk 0:02:28]}  Ra8 {[%clk 0:01:08]} 15. Nbd2 {[%clk 0:02:25]}  d5 {[%clk 0:01:06]} 16. e5 {[%clk 0:01:36]}  Ne8 {[%clk 0:01:06]} 17. Nf1 {[%clk 0:01:35]}  Bd7 {[%clk 0:01:04]} 18. Ne3 {[%clk 0:01:32]}  Rc8 {[%clk 0:00:59]} 19. Rc1 {[%clk 0:01:29]}  Nc4 {[%clk 0:00:46]} 20. Ng4 {[%clk 0:01:18]}  h5 {[%clk 0:00:45]} 21. Nh6+ {[%clk 0:01:14]}  Kh8 {[%clk 0:00:39]} 22. g4 {[%clk 0:01:13]}  f6 {[%clk 0:00:24]} 23. Bxc4 {[%clk 0:00:44]}  dxc4 {[%clk 0:00:16]} 24. g5 {[%clk 0:00:41]}  fxe5 {[%clk 0:00:13]} 25. Bxe5 {[%clk 0:00:41]}  Bc6 {[%clk 0:00:14]} 26. Bxg7+ {[%clk 0:00:39]}  Nxg7 {[%clk 0:00:15]} 27. Re5 {[%clk 0:00:23]}  Bxf3 {[%clk 0:00:14]} 28. Qe1 {[%clk 0:00:23]}  Nf5 {[%clk 0:00:11]} 29. d5 {[%clk 0:00:23]}  Nxh6 {[%clk 0:00:11]} 30. gxh6 {[%clk 0:00:23]}  Bxd5 {[%clk 0:00:11]} 31. Qe3 {[%clk 0:00:23]}  Qf6 {[%clk 0:00:11]} 32. Rd1 {[%clk 0:00:21]}  Rcd8 {[%clk 0:00:10]} 33. Rd4 {[%clk 0:00:20]}  Qf3 {[%clk 0:00:10]} 34. Qxf3 {[%clk 0:00:20]}  Bxf3 {[%clk 0:00:09]} 35. Rxc4 {[%clk 0:00:20]}  Kh7 {[%clk 0:00:08]} 36. Rxe6 {[%clk 0:00:18]}  Kxh6 {[%clk 0:00:08]} 37. Rc7 {[%clk 0:00:19]}  Rd1+ {[%clk 0:00:08]} 38. Kh2 {[%clk 0:00:18]}  h4 {[%clk 0:00:08]} 0-1


[Site "https://www.chess.com"]

[Event "Titled Tuesday Blitz January 03 Early 2023"]
[White "Buscar, Michael"]
[Black "Pinheiro, Iung Alicio de O."]
[WhiteFideId "2603616"]
[BlackFideId "2104350"]
[WhiteElo "2041"]
[BlackElo "2306"]
[Result "1-0"]
[Round "04"]
[TimeControl "180+2"]
[Date "2023.01.03"]
[WhiteClock "0:00:17"]
[BlackClock "0:00:14"]

1. d4 {[%clk 0:02:54]}  Nf6 {[%clk 0:02:58]} 2. c4 {[%clk 0:02:53]}  Nc6 {[%clk 0:02:54]} 3. Nc3 {[%clk 0:02:51]}  e5 {[%clk 0:02:54]} 4. d5 {[%clk 0:02:49]}  Ne7 {[%clk 0:02:54]} 5. e4 {[%clk 0:02:49]}  Ng6 {[%clk 0:02:53]} 6. Bd3 {[%clk 0:02:45]}  Bc5 {[%clk 0:02:50]} 7. Nge2 {[%clk 0:02:34]}  d6 {[%clk 0:02:44]} 8. O-O {[%clk 0:02:28]}  a6 {[%clk 0:02:39]} 9. b4 {[%clk 0:02:26]}  Ba7 {[%clk 0:02:38]} 10. Qe1 {[%clk 0:02:20]}  O-O {[%clk 0:02:37]} 11. Nd1 {[%clk 0:02:20]}  Nh5 {[%clk 0:02:36]} 12. Be3 {[%clk 0:02:20]}  Ngf4 {[%clk 0:02:31]} 13. Bc2 {[%clk 0:01:49]}  Qf6 {[%clk 0:02:23]} 14. Bxa7 {[%clk 0:01:41]}  Rxa7 {[%clk 0:02:20]} 15. Ng3 {[%clk 0:01:40]}  Qg5 {[%clk 0:01:52]} 16. Ne3 {[%clk 0:01:34]}  Nf6 {[%clk 0:01:38]} 17. c5 {[%clk 0:01:28]}  g6 {[%clk 0:01:38]} 18. cxd6 {[%clk 0:01:19]}  cxd6 {[%clk 0:01:37]} 19. Rc1 {[%clk 0:01:11]}  h5 {[%clk 0:01:37]} 20. Bb1 {[%clk 0:00:47]}  h4 {[%clk 0:01:34]} 21. Ne2 {[%clk 0:00:47]}  Nxg2 {[%clk 0:01:32]} 22. Nxg2 {[%clk 0:00:46]}  h3 {[%clk 0:01:32]} 23. Ng3 {[%clk 0:00:44]}  hxg2 {[%clk 0:01:32]} 24. Kxg2 {[%clk 0:00:45]}  Nh5 {[%clk 0:01:32]} 25. Qe3 {[%clk 0:00:35]}  Nf4+ {[%clk 0:01:31]} 26. Kh1 {[%clk 0:00:35]}  Kg7 {[%clk 0:01:19]} 27. Rg1 {[%clk 0:00:35]}  Rh8 {[%clk 0:01:19]} 28. Nf5+ {[%clk 0:00:27]}  Bxf5 {[%clk 0:00:55]} 29. Rxg5 {[%clk 0:00:26]}  Bh3 {[%clk 0:00:55]} 30. Qxa7 {[%clk 0:00:23]}  Kf6 {[%clk 0:00:26]} 31. Rg3 {[%clk 0:00:19]}  Ne2 {[%clk 0:00:23]} 32. Rc7 {[%clk 0:00:18]}  Nxg3+ {[%clk 0:00:18]} 33. fxg3 {[%clk 0:00:18]}  Bg4 {[%clk 0:00:18]} 34. Qxb7 {[%clk 0:00:18]}  Bf3+ {[%clk 0:00:17]} 35. Kg1 {[%clk 0:00:18]}  Rf8 {[%clk 0:00:17]} 36. Rd7 {[%clk 0:00:17]}  Kg7 {[%clk 0:00:15]} 37. Rxd6 {[%clk 0:00:17]}  Bg4 {[%clk 0:00:16]} 38. Rc6 {[%clk 0:00:17]}  Kh6 {[%clk 0:00:13]} 39. Rc7 {[%clk 0:00:17]}  Kg7 {[%clk 0:00:13]} 40. Bd3 {[%clk 0:00:16]}  a5 {[%clk 0:00:12]} 41. bxa5 {[%clk 0:00:16]}  Kf6 {[%clk 0:00:12]} 42. a6 {[%clk 0:00:16]}  Bh3 {[%clk 0:00:10]} 43. a7 {[%clk 0:00:16]}  Kg5 {[%clk 0:00:11]} 44. a8=Q {[%clk 0:00:17]}  Rxa8 {[%clk 0:00:11]} 45. Qxa8 {[%clk 0:00:17]}  f5 {[%clk 0:00:12]} 46. exf5 {[%clk 0:00:17]}  gxf5 {[%clk 0:00:13]} 47. Qg8+ {[%clk 0:00:16]}  Kf6 {[%clk 0:00:13]} 48. Rc6+ {[%clk 0:00:14]}  Ke7 {[%clk 0:00:12]} 49. Re6+ {[%clk 0:00:14]}  Kd7 {[%clk 0:00:12]} 50. Qe8+ {[%clk 0:00:15]}  Kc7 {[%clk 0:00:12]} 51. Rc6+ {[%clk 0:00:15]}  Kb7 {[%clk 0:00:13]} 52. Qc8+ {[%clk 0:00:16]}  Ka7 {[%clk 0:00:14]} 53. Ra6# {[%clk 0:00:17]} 1-0


[Site "https://www.chess.com"]